fUSD/lending_fUSD_20240906
["ID","MTS","AMOUNT","RATE_DAILY","PERIOD"]
[337388955,1725636660235,-150.0,0.00012307,2]
[337388956,1725636660245,-289175.7784885,0.00015,2]
[337388957,1725636660262,-401.47831015,0.00015,2]
[337388958,1725636660273,-22680.21824106,0.00015,2]
[337388959,1725636660284,-2099.91462076,0.00015,2]
[337388960,1725636660296,-1086.72,0.00015,2]
[337388961,1725636660308,-7233.95473984,0.00015,2]
[337388962,1725636660319,-2890.9,0.00015,2]
[337388963,1725636660331,-611.81478294,0.00015,2]
[337388964,1725636660342,-2191.140544,0.00015,2]
[337388965,1725636660353,-1151.5,0.00015,2]
[337388966,1725636660364,-525.66497705,0.00015,2]
[337388967,1725636660375,-476.46553505,0.00015,2]
[337388968,1725636660386,-55484.88177165,0.00015,2]
[337388969,1725636660397,-266.59726526,0.00015,2]
[337388977,1725636731130,-166.84,0.00014069,30]
[337388978,1725636731194,-166.84,0.00016653,30]
[337388979,1725636731250,-166.84,0.00019237,30]
[337388980,1725636731310,-166.84,0.00021821,30]
[337388981,1725636731386,-166.84,0.00024405,30]
[337388982,1725636731448,-166.84,0.00026989,30]
[337388983,1725636731526,-166.84,0.00029573,30]
[337388984,1725636731624,-166.84,0.00032157,30]
[337388985,1725636731682,-166.84,0.00034741,120]
[337388986,1725636731736,-166.84,0.00037325,120]
[337388987,1725636731794,-166.84,0.00039909,120]
[337388988,1725636731852,-5979740.83508066,0.0003998,30]
[337388989,1725636731909,-947.18,0.000407,30]
[337388990,1725636731959,-500.0,0.00041358,30]
[337388991,1725636732010,-706.0767,0.00041688,30]
[337388992,1725636732063,-706.0767,0.00042088,30]
[337388993,1725636732118,-500.0,0.00042454,30]
[337388994,1725636732169,-166.84,0.00042493,120]
[337388995,1725636732222,-500.0,0.0004355,30]
[337388996,1725636732271,-2000.0,0.00043835,120]
[337388997,1725636732326,-12397.75151934,0.00044,120]
[337388998,1725636736854,-987602.24848066,0.00044,120]
[337388999,1725636736909,-150.0,0.00044081,30]
[337389000,1725636736964,-150.0,0.00044115,30]
[337389001,1725636737020,-150.0,0.00044137,30]
[337389002,1725636737077,-10002.24257897,0.000442,120]
[337389003,1725636737143,-10002.24257896,0.000442,120]
[337389004,1725636737200,-2000.0,0.00044383,120]
[337389005,1725636737257,-150.0,0.00044403,30]
[337389006,1725636737312,-150.0,0.00044434,30]
[337389007,1725636737370,-200.0,0.00044588,120]
[337389008,1725636737429,-150.0,0.00044707,30]
[337389009,1725636737489,-150.0,0.00044872,30]
[337389010,1725636737550,-150.0,0.00044887,30]
[337389011,1725636737619,-87433.72917063,0.000449,120]
[337389012,1725636737677,-2000.0,0.00044931,120]
[337389013,1725636737737,-500.0,0.00044931,30]
[337389014,1725636737799,-496125.47790198,0.00045,120]
[337389015,1725636737866,-10000.0,0.00045,120]
[337389016,1725636737923,-140000.0,0.00045,30]
[337389017,1725636737984,-200.0,0.00045,120]
[337389018,1725636738044,-150.0,0.00045,120]
[337389019,1725636738102,-249.29891561,0.00045,35]
[337389020,1725636738158,-15000.0,0.00045,120]
[337389021,1725636738217,-15000.0,0.00045,120]
[337389022,1725636738274,-1000000.0,0.00045,120]
[337389023,1725636738334,-1000.0,0.00045,120]
[337389024,1725636738391,-320.0,0.00045,120]
[337389025,1725636738451,-176.62997965,0.00045031,30]
[337389026,1725636738505,-150.0,0.00045041,30]
[337389027,1725636738563,-150.0,0.00045041,30]
[337389028,1725636738621,-150.0,0.00045065,120]
[337389029,1725636738679,-166.84,0.00045077,120]
[337389030,1725636738735,-176.62997965,0.00045081,30]
[337389031,1725636738793,-658.0,0.000451,99]
[337389032,1725636738851,-150.0,0.00045105,30]
[337389033,1725636738909,-150.0,0.00045123,30]
[337389034,1725636738965,-176.62997965,0.00045131,30]
[337389035,1725636739025,-176.62997965,0.00045181,30]
[337389036,1725636739083,-150.0,0.00045198,120]
[337389037,1725636739139,-1342.28,0.00045205,120]
[337389038,1725636739397,-185.10168,0.00045205,120]
[337389039,1725636739457,-150.0,0.00045205,30]
[337389040,1725636739516,-150.0,0.00045225,30]
[337389041,1725636739575,-176.62997965,0.0004523,30]
[337389042,1725636739634,-323.0,0.0004524,120]
[337389043,1725636739695,-2950.0,0.0004525,120]
[337389044,1725636739753,-500000.0,0.0004525,120]
[337389045,1725636739813,-176.62997965,0.0004528,30]
[337389046,1725636739871,-150.0,0.00045288,30]
[337389047,1725636739929,-176.62997965,0.0004533,30]
[337389048,1725636739982,-150.0,0.00045346,30]
[337389049,1725636740038,-150.0,0.0004537,30]
[337389050,1725636740095,-150.0,0.0004537,30]
[337389051,1725636740151,-176.62997965,0.0004538,30]
[337389052,1725636740204,-150.0,0.00045398,119]
[337389053,1725636740261,-176.62997965,0.0004543,30]
[337389054,1725636740316,-150.0,0.00045439,120]
[337389055,1725636740372,-150.0,0.00045452,30]
[337389056,1725636740427,-150.0,0.00045466,30]
[337389057,1725636740482,-1342.28,0.00045479,120]
[337389058,1725636740540,-2000.0,0.00045479,120]
[337389059,1725636740600,-176.62997965,0.00045479,30]
[337389060,1725636740658,-150.0,0.00045498,120]
[337389061,1725636740711,-5000.0,0.000455,120]
[337389062,1725636740765,-500000.0,0.000455,120]
[337389063,1725636740819,-500000.0,0.000455,120]
[337389064,1725636740873,-500000.0,0.000455,120]
[337389065,1725636740927,-1000000.0,0.000455,120]
[337389066,1725636740981,-176.62997965,0.00045529,30]
[337389067,1725636741035,-150.0,0.00045534,30]
[337389068,1725636741092,-150.0,0.00045538,120]
[337389069,1725636741145,-268.0,0.0004554,30]
[337389070,1725636741198,-201.0,0.0004554,30]
[337389071,1725636741250,-150.0,0.00045559,120]
[337389072,1725636741308,-176.62997965,0.00045579,30]
[337389073,1725636741362,-150.0,0.00045586,30]
[337389074,1725636741419,-150.0,0.00045593,120]
[337389075,1725636741471,-248.07761277,0.000456,120]
[337389076,1725636741529,-2000.0,0.000456,120]
[337389077,1725636741585,-150.0,0.00045616,30]
[337389078,1725636741647,-176.62997965,0.00045629,30]
[337389079,1725636741703,-150.0,0.00045642,120]
[337389080,1725636741758,-1006.18,0.0004566,86]
[337389081,1725636741815,-176.62997965,0.00045679,30]
[337389082,1725636741875,-150.0,0.00045699,30]
[337389083,1725636741931,-150.0,0.00045699,30]
[337389084,1725636741988,-150.0,0.00045707,30]
[337389085,1725636742048,-151.0,0.00045726,120]
[337389086,1725636742110,-176.62997965,0.00045728,30]
[337389087,1725636742164,-140000.0,0.0004575,120]
[337389088,1725636742218,-56473.55138567,0.0004575,120]
[337389089,1725636746211,-353100.013,0.00044,120]
[337389090,1725636746262,-10002.24257896,0.000442,120]
[337389091,1725636746315,-10002.24257896,0.000442,120]
[337389092,1725636746371,-443526.44861433,0.0004575,120]
[337389093,1725636746419,-1342.28,0.00045753,120]
[337389094,1725636746472,-176.62997965,0.00045778,30]
[337389095,1725636746522,-150.0,0.00045781,30]
[337389096,1725636746758,-150.0,0.00045798,120]
[337389097,1725636746813,-2367.9987,0.000458,60]
[337389098,1725636746864,-150.0,0.00045827,30]
[337389099,1725636746919,-176.62997965,0.00045828,30]
[337389100,1725636746968,-150.0,0.00045863,30]
[337389101,1725636747022,-176.62997965,0.00045878,30]
[337389102,1725636747075,-176.62997965,0.00045928,30]
[337389103,1725636747128,-150.0,0.00045945,30]
[337389104,1725636747178,-150.0,0.00045947,30]
[337389105,1725636747229,-150.0,0.00045948,120]
[337389106,1725636747283,-176.62997965,0.00045978,30]
[337389107,1725636747336,-1000.0,0.00045999,120]
[337389108,1725636747391,-50000.0,0.00046,36]
[337389109,1725636747450,-50000.0,0.00046,46]
[337389110,1725636747503,-1007.08893003,0.00046,120]
[337389111,1725636747558,-170.3,0.00046,96]
[337389112,1725636747616,-2165.08659611,0.00046,120]
[337389113,1725636747672,-1000.0,0.00046,120]
[337389114,1725636747725,-900.0,0.00046,120]
[337389115,1725636747780,-1000.0,0.00046,30]
[337389116,1725636747834,-2000.0,0.00046,120]
[337389117,1725636747885,-1000.0,0.00046,120]
[337389118,1725636747938,-1000.0,0.00046,120]
[337389119,1725636747987,-1000.0,0.00046,120]
[337389120,1725636748038,-1000.0,0.00046,120]
[337389121,1725636748087,-1000.0,0.00046,120]
[337389122,1725636748139,-1000.0,0.00046,120]
[337389123,1725636748186,-1000.0,0.00046,120]
[337389124,1725636748237,-1000.0,0.00046,120]
[337389125,1725636748286,-500000.0,0.00046,120]
[337389126,1725636748336,-10000.0,0.00046,120]
[337389127,1725636748385,-1000000.0,0.00046,120]
[337389128,1725636748434,-1342.28,0.00046027,120]
[337389129,1725636748484,-2000.0,0.00046027,120]
[337389130,1725636748541,-500.0,0.00046027,30]
[337389131,1725636748595,-500.0,0.00046027,30]
[337389132,1725636748646,-500.0,0.00046027,30]
[337389133,1725636748697,-530.23469284,0.00046027,30]
[337389134,1725636748749,-176.62997965,0.00046027,30]
[337389135,1725636748800,-150.0,0.00046027,30]
[337389136,1725636748852,-150.0,0.00046027,30]
[337389137,1725636748905,-150.0,0.00046067,30]
[337389138,1725636748953,-176.62997965,0.00046077,30]
[337389139,1725636749008,-150.0,0.0004611,30]
[337389140,1725636749055,-176.62997965,0.00046127,30]
[337389141,1725636749112,-176.62997965,0.00046177,30]
[337389142,1725636749161,-150.0,0.00046188,30]
[337389143,1725636749210,-150.0,0.00046192,30]
[337389144,1725636749261,-176.62997965,0.00046227,30]
[337389145,1725636749316,-150.0,0.00046274,30]
[337389146,1725636749368,-176.62997965,0.00046276,30]
[337389147,1725636749416,-1000.0,0.000463,120]
[337389148,1725636749466,-1000.0,0.000463,120]
[337389149,1725636749515,-1000.0,0.000463,120]
[337389150,1725636749571,-1000.0,0.000463,120]
[337389151,1725636749622,-1000.0,0.000463,120]
[337389152,1725636749673,-1000.0,0.000463,120]
[337389153,1725636749726,-1000.0,0.000463,120]
[337389154,1725636749777,-1000.0,0.000463,120]
[337389155,1725636749834,-1342.28,0.00046301,120]
[337389156,1725636749884,-150.0,0.00046308,30]
[337389157,1725636749941,-176.62997965,0.00046326,30]
[337389158,1725636749991,-150.0,0.00046356,30]
[337389159,1725636750047,-150.0,0.00046356,30]
[337389160,1725636750102,-150.0,0.00046374,120]
[337389161,1725636750163,-176.62997965,0.00046376,30]
[337389162,1725636750213,-176.62997965,0.00046426,30]
[337389163,1725636750262,-150.0,0.00046428,30]
[337389164,1725636750315,-150.0,0.00046438,30]
[337389165,1725636750365,-150.0,0.0004645,120]
[337389166,1725636750418,-150.0,0.00046452,120]
[337389167,1725636750469,-176.62997965,0.00046476,30]
[337389168,1725636750523,-530.89443269,0.000465,120]
[337389169,1725636750575,-5000.0,0.000465,120]
[337389170,1725636750632,-500000.0,0.000465,120]
[337389171,1725636750689,-141819.6,0.000465,120]
[337389172,1725636750740,-150.0,0.00046503,120]
[337389173,1725636750791,-150.0,0.0004652,30]
[337389174,1725636750843,-176.62997965,0.00046525,30]
[337389175,1725636750895,-150.0,0.00046549,30]
[337389176,1725636750946,-1342.28,0.00046575,120]
[337389177,1725636750999,-500.0,0.00046575,120]
[337389178,1725636751047,-500.0,0.00046575,120]
[337389179,1725636751099,-500.0,0.00046575,120]
[337389180,1725636751147,-500.08150656,0.00046575,120]
[337389181,1725636751199,-2000.0,0.00046575,120]
[337389182,1725636751248,-176.62997965,0.00046575,30]
[337389183,1725636751300,-150.0,0.00046586,120]
[337389184,1725636751351,-150.0,0.00046603,30]
[337389185,1725636751406,-176.62997965,0.00046625,30]
[337389186,1725636751455,-150.0,0.00046669,30]
[337389187,1725636751507,-176.62997965,0.00046675,30]
[337389188,1725636751558,-150.0,0.00046685,30]
[337389189,1725636751616,-150.0,0.00046685,30]
[337389190,1725636751667,-150.0,0.00046685,120]
[337389191,1725636751720,-203.70593773,0.00046704,40]
[337389192,1725636751772,-232.06191271,0.00046704,40]
[337389193,1725636751828,-256.4141048,0.00046704,40]
[337389194,1725636751881,-294.22898633,0.00046704,40]
[337389195,1725636751934,-176.62997965,0.00046725,30]
[337389196,1725636751983,-150.0,0.00046736,120]
[337389197,1725636752039,-150.0,0.00046747,120]
[337389198,1725636752092,-150.0,0.00046767,30]
[337389199,1725636752146,-176.62997965,0.00046775,30]
[337389200,1725636752194,-150.0,0.00046789,30]
[337389201,1725636752245,-2378.566,0.000468,110]
[337389202,1725636752295,-176.62997965,0.00046824,30]
[337389203,1725636752346,-1342.28,0.00046849,120]
[337389204,1725636752396,-150.0,0.00046849,30]
[337389205,1725636752447,-150.0,0.00046849,30]
[337389206,1725636752498,-151.0,0.00046849,120]
[337389207,1725636752556,-176.62997965,0.00046874,30]
[337389208,1725636752621,-216795.7693042,0.0004688,30]
[337389209,1725636752682,-150.0,0.00046909,30]
[337389210,1725636752738,-176.62997965,0.00046924,30]
[337389211,1725636752795,-150.0,0.00046931,30]
[337389212,1725636752858,-176.62997965,0.00046974,30]
[337389213,1725636752914,-1000.0,0.00046999,120]
[337389214,1725636752972,-50000.0,0.00047,37]
[337389215,1725636753035,-50000.0,0.00047,47]
[337389216,1725636753091,-2000.49588095,0.00047,120]
[337389217,1725636753149,-4186.0,0.00047,30]
[337389218,1725636753207,-326.35686631,0.00047,35]
[337389219,1725636753264,-1000000.0,0.00047,120]
[337389220,1725636753326,-1000000.0,0.00047,120]
[337389221,1725636753386,-500000.0,0.00047,120]
[337389222,1725636753440,-3065.20427177,0.00047,60]
[337389223,1725636753498,-10000.0,0.00047,120]
[337389224,1725636753559,-6305.52098795,0.00047,35]
[337389225,1725636753626,-4435.1013405,0.00047,35]
[337389226,1725636753691,-21770.19328502,0.00047,120]
[337389227,1725636758046,-1073.9735,0.00040008,30]
[337389228,1725636758099,-10002.24257896,0.000442,120]
[337389229,1725636758150,-317.33663405,0.0004471,30]
[337389230,1725636758204,-317.33663406,0.00045223,30]
[337389231,1725636758254,-150.0,0.00046418,120]
[337389232,1725636758307,-978229.80671498,0.00047,120]
[337389233,1725636758362,-1000000.0,0.00047,120]
[337389234,1725636758420,-1000000.0,0.00047,120]
[337389235,1725636758471,-150.0,0.00047009,120]
[337389236,1725636758527,-150.0,0.00047014,30]
[337389237,1725636758583,-150.0,0.00047014,30]
[337389238,1725636758637,-176.62997965,0.00047024,30]
[337389239,1725636759124,-150.0,0.0004703,30]
[337389240,1725636759196,-1006.18,0.0004703,97]
[337389241,1725636759247,-176.62997965,0.00047073,30]
[337389242,1725636759296,-150.0,0.00047096,30]
[337389243,1725636759349,-653.0,0.000471,99]
[337389244,1725636759399,-150.0,0.00047117,120]
[337389245,1725636759453,-1342.28,0.00047123,120]
[337389246,1725636759502,-2000.0,0.00047123,120]
[337389247,1725636759559,-500.0,0.00047123,30]
[337389248,1725636759617,-500.0,0.00047123,30]
[337389249,1725636759679,-500.0,0.00047123,30]
[337389250,1725636759745,-176.62997965,0.00047123,30]
[337389251,1725636759806,-150.0,0.0004715,30]
[337389252,1725636759871,-176.62997965,0.00047173,30]
[337389253,1725636759926,-150.0,0.00047178,30]
[337389254,1725636759984,-176.62997965,0.00047223,30]
[337389255,1725636760038,-150.0,0.00047235,120]
[337389256,1725636760091,-150.0,0.0004725,35]
[337389257,1725636760148,-150.0,0.0004726,30]
[337389258,1725636760203,-150.0,0.0004727,30]
[337389259,1725636760261,-176.62997965,0.00047273,30]
[337389260,1725636760313,-176.62997965,0.00047322,30]
[337389261,1725636760373,-150.0,0.00047328,120]
[337389262,1725636760425,-4866.66113,0.00047342,30]
[337389263,1725636760481,-150.0,0.00047342,30]
[337389264,1725636760536,-176.62997965,0.00047372,30]
[337389265,1725636760593,-150.0,0.00047377,120]
[337389266,1725636760646,-150.0,0.00047391,30]
[337389267,1725636760701,-1342.28,0.00047397,120]
[337389268,1725636760754,-176.62997965,0.00047422,30]
[337389269,1725636760808,-268.0,0.0004743,30]
[337389270,1725636760864,-201.0,0.0004743,30]
[337389271,1725636760919,-176.62997965,0.00047472,30]
[337389272,1725636760968,-116349.67411517,0.0004748,120]
[337389273,1725636761022,-5000.0,0.000475,120]
[337389274,1725636761075,-500000.0,0.000475,120]
[337389275,1725636761131,-150.0,0.00047511,30]
[337389276,1725636761181,-176.62997965,0.00047522,30]
[337389277,1725636761235,-176.62997965,0.00047572,30]
[337389278,1725636761288,-176.62997965,0.00047621,30]
[337389279,1725636761340,-150.0,0.00047631,30]
[337389280,1725636761390,-150.0,0.00047635,120]
[337389281,1725636761443,-2678.8976,0.0004766,90]
[337389282,1725636761494,-166.84,0.00047661,120]
[337389283,1725636761550,-1342.28,0.00047671,120]
[337389284,1725636761607,-2000.0,0.00047671,120]
[337389285,1725636761660,-176.62997965,0.00047671,30]
[337389286,1725636761713,-150.0,0.00047671,30]
[337389287,1725636761766,-176.62997965,0.00047721,30]
[337389288,1725636761820,-150.0,0.00047751,30]
[337389289,1725636761872,-176.62997965,0.00047771,30]
[337389290,1725636761925,-286.99412985,0.000478,120]
[337389291,1725636761975,-2689.9988,0.000478,90]
[337389292,1725636762028,-176.62997965,0.00047821,30]
[337389293,1725636762088,-176.62997965,0.0004787,30]
[337389294,1725636762142,-150.0,0.00047872,30]
[337389295,1725636762193,-701.35551429,0.0004789,30]
[337389296,1725636762245,-200.0,0.00047917,120]
[337389297,1725636762298,-176.62997965,0.0004792,30]
[337389298,1725636762350,-1342.28,0.00047945,120]
[337389299,1725636762406,-176.62997965,0.0004797,30]
[337389300,1725636762462,-151.0,0.00047973,120]
[337389301,1725636762519,-150.0,0.00047992,30]
[337389302,1725636762575,-1000.0,0.00047999,120]
[337389303,1725636762634,-50000.0,0.00048,38]
[337389304,1725636762692,-50000.0,0.00048,48]
[337389305,1725636762749,-150.0,0.00048,30]
[337389306,1725636762804,-2014.17786008,0.00048,120]
[337389307,1725636762866,-2165.08659612,0.00048,120]
[337389308,1725636762919,-151.0,0.00048,120]
[337389309,1725636763000,-1000.0,0.00048,120]
[337389310,1725636763060,-182.68649829,0.00048,60]
[337389311,1725636763120,-860.99544243,0.00048,120]
[337389312,1725636763178,-1594.14453524,0.00048,120]
[337389313,1725636763234,-608.25221626,0.00048,120]
[337389314,1725636763291,-3075.0,0.00048,120]
[337389315,1725636763343,-160.0,0.00048,90]
[337389316,1725636763395,-2000.0,0.00048,120]
[337389317,1725636763449,-10000.0,0.00048,120]
[337389318,1725636763505,-10438.53213299,0.00048,120]
[337389319,1725636763558,-1000000.0,0.00048,120]
[337389320,1725636763612,-716.0,0.00048,120]
[337389321,1725636763667,-505.84897253,0.00048,48]
[337389322,1725636763720,-335251.4181433,0.00048,120]
[337389323,1725636763778,-500000.0,0.00048,120]
[337389324,1725636763829,-20040.0,0.00048,120]
[337389325,1725636763883,-2886.66,0.00048,90]
[337389326,1725636763934,-4012.2172367,0.00048,120]
[337389327,1725636763987,-176.62997965,0.0004802,30]
[337389328,1725636764040,-176.62997965,0.0004807,30]
[337389329,1725636764090,-150.0,0.00048112,30]
[337389330,1725636764141,-176.62997965,0.00048119,30]
[337389331,1725636764190,-150.0,0.00048127,120]
[337389332,1725636764240,-176.62997965,0.00048169,30]
[337389333,1725636764290,-1342.28,0.00048219,120]
[337389334,1725636764340,-2000.0,0.00048219,120]
[337389335,1725636764389,-500.0,0.00048219,30]
[337389336,1725636764440,-500.0,0.00048219,30]
[337389337,1725636764488,-500.0,0.00048219,30]
[337389338,1725636764544,-176.62997965,0.00048219,30]
[337389339,1725636764593,-205.69986309,0.0004822,120]
[337389340,1725636764646,-150.0,0.00048226,120]
[337389341,1725636764694,-150.0,0.00048232,30]
[337389342,1725636764744,-176.62997965,0.00048269,30]
[337389343,1725636764796,-1000.508712,0.000483,120]
[337389344,1725636764851,-176.62997965,0.00048319,30]
[337389345,1725636764902,-150.0,0.00048329,30]
[337389346,1725636764955,-150.0,0.00048353,30]
[337389347,1725636765007,-176.62997965,0.00048369,30]
[337389348,1725636765060,-976.0670556,0.000484,120]
[337389349,1725636765112,-5000.0,0.000484,30]
[337389350,1725636765163,-1006.18,0.000484,107]
[337389351,1725636765217,-150.0,0.00048416,120]
[337389352,1725636765267,-176.62997965,0.00048418,30]
[337389353,1725636765323,-176.62997965,0.00048468,30]
[337389354,1725636765373,-150.0,0.00048473,30]
[337389355,1725636765425,-150.0,0.00048481,120]
[337389356,1725636765475,-1342.28,0.00048493,120]
[337389357,1725636765526,-609.2604811,0.000485,120]
[337389358,1725636765577,-5000.0,0.000485,120]
[337389359,1725636765633,-334927.38751341,0.000485,120]
[337389360,1725636793494,-500.0,0.00044637,30]
[337389361,1725636793546,-624.45606785,0.00046233,120]
[337389362,1725636793596,-165072.61248659,0.000485,120]
[337389363,1725636793643,-217.16015325,0.000485,120]
[337389364,1725636793689,-150.0,0.00048508,120]
[337389365,1725636793738,-176.62997965,0.00048518,30]
[337389366,1725636793790,-176.62997965,0.00048568,30]
[337389367,1725636793837,-150.0,0.00048591,120]
[337389368,1725636793886,-150.0,0.00048593,30]
[337389369,1725636793932,-176.62997965,0.00048618,30]
[337389370,1725636793983,-150.0,0.00048657,30]
[337389371,1725636794031,-176.62997965,0.00048667,30]
[337389372,1725636794076,-341768.17,0.0004869,120]
[337389373,1725636794126,-150.0,0.00048714,30]
[337389374,1725636794174,-176.62997965,0.00048717,30]
[337389375,1725636794225,-1342.28,0.00048767,120]
[337389376,1725636794272,-2000.0,0.00048767,120]
[337389377,1725636794323,-176.62997965,0.00048767,30]
[337389378,1725636794371,-150.0,0.00048774,120]
[337389379,1725636794419,-1099.99999994,0.000488,120]
[337389380,1725636794464,-439.17897602,0.000488,120]
[337389381,1725636794513,-1166.40231921,0.000488,120]
[337389382,1725636794561,-455.35467522,0.000488,120]
[337389383,1725636794613,-176.62997965,0.00048817,30]
[337389384,1725636794661,-150.0,0.00048834,30]
[337389385,1725636794713,-176.62997965,0.00048867,30]
[337389386,1725636794764,-803.0,0.0004888,120]
[337389387,1725636794815,-1136.18933974,0.000489,120]
[337389388,1725636794864,-716.54332778,0.000489,120]
[337389389,1725636794917,-151347.55959427,0.000489,30]
[337389390,1725636794966,-280482.35097101,0.000489,60]
[337389391,1725636795020,-176.62997965,0.00048916,30]
[337389392,1725636795071,-150.0,0.00048954,30]
[337389393,1725636795121,-176.62997965,0.00048966,30]
[337389394,1725636795171,-150.0,0.00048986,30]
[337389395,1725636795221,-1000.0,0.00048999,120]
[337389396,1725636795274,-50000.0,0.00049,39]
[337389397,1725636795326,-50000.0,0.00049,49]
[337389398,1725636795375,-1285.234986,0.00049,30]
[337389399,1725636795425,-734.85072479,0.00049,30]
[337389400,1725636795473,-556.4645215,0.00049,120]
[337389401,1725636795523,-204.19826695,0.00049,120]
[337389402,1725636795582,-10000.0,0.00049,120]
[337389403,1725636795632,-1000000.0,0.00049,120]
[337389404,1725636795682,-771.35697339,0.00049,120]
[337389405,1725636795733,-500000.0,0.00049,120]
[337389406,1725636795783,-176.62997965,0.00049016,30]
[337389407,1725636795835,-1342.28,0.00049041,120]
[337389408,1725636795884,-176.62997965,0.00049066,30]
[337389409,1725636795930,-150.0,0.00049074,30]
[337389410,1725636795981,-151.0,0.00049096,120]
[337389411,1725636796029,-150.0,0.00049113,120]
[337389412,1725636796077,-176.62997965,0.00049116,30]
[337389413,1725636796123,-176.62997965,0.00049166,30]
[337389414,1725636796172,-150.0,0.00049195,30]
[337389415,1725636796218,-176.62997965,0.00049215,30]
[337389416,1725636796267,-500000.0,0.0004925,120]
[337389417,1725636796313,-176.62997965,0.00049265,30]
[337389418,1725636796367,-150.0,0.00049283,120]
[337389419,1725636796413,-202.0,0.0004931,30]
[337389420,1725636796459,-268.0,0.0004931,30]
[337389421,1725636796505,-201.0,0.0004931,30]
[337389422,1725636796557,-1342.28,0.00049315,120]
[337389423,1725636796605,-500.0,0.00049315,90]
[337389424,1725636796652,-500.0,0.00049315,30]
[337389425,1725636796700,-500.0,0.00049315,90]
[337389426,1725636796747,-3000.0,0.00049315,120]
[337389427,1725636796795,-176.62997965,0.00049315,30]
[337389428,1725636796842,-176.80269005,0.00049315,30]
[337389429,1725636796890,-245.25976009,0.00049315,30]
[337389430,1725636796937,-210.04396304,0.00049315,30]
[337389431,1725636796987,-254.17682028,0.00049315,30]
[337389432,1725636797033,-164.50727367,0.00049315,30]
[337389433,1725636797083,-2000.0,0.00049315,120]
[337389434,1725636797133,-189.98680556,0.00049315,90]
[337389435,1725636797182,-1000.0,0.00049315,34]
[337389436,1725636797229,-10000.0,0.0004944,30]
[337389437,1725636797279,-150.0,0.00049463,120]
[337389438,1725636797328,-620.54161186,0.0004949,120]
[337389439,1725636797377,-558.43644705,0.000495,120]
[337389440,1725636797427,-5000.0,0.000495,120]
[337389441,1725636797477,-150.0,0.00049559,120]
[337389442,1725636797530,-1342.28,0.00049589,120]
[337389443,1725636797581,-90076.29474696,0.000496,120]
[337389444,1725636797636,-150.0,0.00049692,120]
[337389445,1725636797689,-500000.0,0.00049725,120]
[337389446,1725636797742,-500000.0,0.0004975,120]
[337389447,1725636798066,-1006.18,0.0004977,118]
[337389448,1725636798119,-500000.0,0.00049775,120]
[337389449,1725636798169,-10000.0,0.0004978,30]
[337389450,1725636798218,-118220.33827407,0.000498,30]
[337389451,1725636798268,-28948.04890279,0.000498,30]
[337389452,1725636798319,-500000.0,0.00049825,120]
[337389453,1725636798370,-150.0,0.00049843,120]
[337389454,1725636798416,-1342.28,0.00049863,120]
[337389455,1725636798465,-500.0,0.00049863,90]
[337389456,1725636798513,-500.0,0.00049863,90]
[337389457,1725636798565,-2000.0,0.00049863,120]
[337389458,1725636798616,-500000.0,0.00049875,120]
[337389459,1725636798670,-151.761,0.00049897,120]
[337389460,1725636798721,-151.761,0.00049897,120]
[337389461,1725636798768,-151.761,0.00049897,120]